[Event "12th Chennai Open 2020"]
[Site "Chennai"]
[Date "2020.01.19"]
[Round "3.18"]
[White "Lakshmi Narayanan M V"]
[Black "Mitrabha, Guha"]
[Result "1-0"]
[ECO "B15"]
[WhiteElo "2162"]
[BlackElo "2448"]
[Annotator "NA"]
[PlyCount "81"]
[EventDate "2020.01.19"]
[EventType "swiss"]
[EventCountry "IND"]
[SourceTitle "playchess.com"]
[Source "ChessBase"]
[SourceQuality "1"]
[TimeControl "5400+30"]

1. e4 {[%emt 0:06:28]} c6 {[%emt 0:00:18]} 2. d4 {[%emt 0:00:00]} d5 {[%emt 0:00:06]} 3. Nd2 {[%emt 0:00:14]} dxe4 {[%emt 0:00:05]} 4. Nxe4 {[%emt 0:00:48]} Nf6 {[%emt 0:01:01]} 5. Nxf6+ {[%emt 0:01:01]} exf6 {[%emt 0:00:04]} 6. c3 {[%emt 0:01:37]} Bd6 {[%emt 0:00:08]} 7. Bd3 {[%emt 0:01:14]} O-O {[%emt 0:00:11]} 8. Ne2 {[%emt 0:00:39]} Re8 {[%emt 0:00:00]} 9. Qc2 {[%emt 0:00:29]} h5 {[%emt 0:00:00]} 10. Be3 {[%emt 0:03:10]} Nd7 {[%emt 0:00:00]} 11. O-O-O {[%emt 0:00:49]} Nf8 {[%emt 0:00:00]} 12. Kb1 {[%emt 0:01:46]} Be6 {[%emt 0:00:00]} 13. c4 {[%emt 0:04:00]} Rc8 {[%emt 0:00:39]} 14. Nc3 {[%emt 0:05:45]} Bb4 $11 {[%emt 0:07:05]} 15. Ne4 {[%emt 0:08:51]} Qa5 {[%emt 0:08:23]} 16. b3 {[%emt 0:05:30]} Rcd8 {[%emt 0:07:17]} 17. h3 {[%emt 0:04:19]} h4 {[%emt 0:09:06]} 18. g4 {[%emt 0:07:31]} b5 {[%emt 0:17:58]} 19. c5 {[%emt 0:01:28]} Bd5 {[%emt 0:00:22]} 20. Rhg1 {[%emt 0:02:44]} Ne6 {[%emt 0:01:10]} 21. g5 {[%emt 0:01:57]} fxg5 {[%emt 0:08:36]} 22. Nxg5 {[%emt 0:03:03]} Qc7 {[%emt 0:01:33]} 23. Nxe6 {[%emt 0:12:12]} Rxe6 {[%emt 0:00:30]} 24. Qe2 {[%emt 0:04:12]} g6 {[%emt 0:26:27]} 25. Qg4 {[%emt 0:02:34]} Qd7 {[%emt 0:03:36]} 26. Qxh4 {[%emt 0:01:20]} Rde8 {[%emt 0:00:46]} 27. Bg5 {[%emt 0:01:56]} Bf3 {[%emt 0:01:10]} 28. Bf6 {[%emt 0:01:21]} Rxf6 {[%emt 0:00:11]} 29. Qxf6 {[%emt 0:00:23]} Bh5 {[%emt 0:00:18]} 30. d5 {[%emt 0:08:44]} cxd5 {[%emt 0:02:25]} 31. Qh4 {[%emt 0:01:31]} Bxd1 {[%emt 0:01:28]} 32. Bxg6 {[%emt 0:00:29]} Bg4 {[%emt 0:02:11]} 33. Rxg4 {[%emt 0:02:36]} Kf8 {[%emt 0:01:40]} 34. Rxb4 {[%emt 0:02:40]} fxg6 {[%emt 0:01:09]} 35. Qf6+ {[%emt 0:00:47]} Qf7 {[%emt 0:00:02]} 36. Qxf7+ {[%emt 0:01:14]} Kxf7 {[%emt 0:00:02]} 37. Rxb5 {[%emt 0:00:02]} Re1+ {[%emt 0:00:02]} 38. Kc2 {[%emt 0:00:19]} Re2+ {[%emt 0:00:02]} 39. Kd3 {[%emt 0:00:21]} Rxa2 {[%emt 0:00:05]} 40. c6 {[%emt 0:00:50]} Ke6 {[%emt 0:00:02]} 41. Rc5 {[%emt 0:00:20]} 1-0

[Event "12th Chennai Open 2020"]
[Site "Chennai"]
[Date "2020.01.19"]
[Round "3.19"]
[White "Priyanka, Kumari"]
[Black "Hesham, Abdelrahman"]
[Result "1-0"]
[ECO "C76"]
[WhiteElo "1874"]
[BlackElo "2429"]
[Annotator "NA"]
[PlyCount "71"]
[EventDate "2020.01.19"]
[EventType "swiss"]
[EventCountry "IND"]
[SourceTitle "playchess.com"]
[Source "ChessBase"]
[SourceQuality "1"]
[TimeControl "5400+30"]

1. e4 {[%emt 1:30:30]} e5 {[%emt 1:30:30]} 2. Nf3 {[%emt 0:00:30]} Nc6 {[%emt 0:00:30]} 3. Bb5 {[%emt 0:00:30]} a6 {[%emt 0:00:30]} 4. Ba4 {[%emt 0:00:30]} g6 {[%emt 0:00:30]} 5. c3 {[%emt 0:00:30]} d6 6. d4 {[%emt 0:00:30]} Bd7 {[%emt 0:01:00]} 7. O-O {[%emt 0:00:30]} Bg7 {[%emt 0:00:30]} 8. Bg5 {[%emt 0:00:30]} Nf6 {[%emt 0:00:30]} 9. dxe5 {[%emt 0:00:30]} dxe5 {[%emt 0:00:30]} 10. Nbd2 {[%emt 0:00:30]} h6 {[%emt 0:00:30]} 11. Be3 {[%emt 0:00:30]} Qe7 {[%emt 0:00:30]} 12. b4 {[%emt 0:00:30]} Ng4 $14 {[%emt 0:00:30]} 13. Bc5 {[%emt 0:00:30]} Qf6 {[%emt 0:00:30]} 14. h3 {[%emt 0:00:30]} h5 {[%emt 0:00:30]} 15. Re1 {[%emt 0:00:30]} b6 {[%emt 0:00:30]} 16. Be3 {[%emt 0:00:30]} Nxe3 {[%emt 0:00:30]} 17. Rxe3 {[%emt 0:00:30]} b5 {[%emt 0:00:30]} 18. Bb3 {[%emt 0:00:30]} g5 {[%emt 0:00:30]} 19. Nh2 {[%emt 0:00:30]} g4 {[%emt 0:00:30]} 20. hxg4 {[%emt 0:00:30]} hxg4 {[%emt 0:00:30]} 21. Nxg4 {[%emt 0:00:30]} Qh4 {[%emt 0:00:30]} 22. Rh3 {[%emt 0:00:30]} Qxg4 {[%emt 0:00:30]} 23. Qxg4 {[%emt 0:00:30]} Bxg4 {[%emt 0:00:30]} 24. Rg3 {[%emt 0:00:30]} Bh6 {[%emt 0:00:30]} 25. Rxg4 {[%emt 0:00:30]} Bxd2 {[%emt 0:00:30]} 26. Bd5 {[%emt 0:00:30]} Kd7 {[%emt 0:00:30]} 27. Rd1 {[%emt 0:00:30]} Bh6 {[%emt 0:00:30]} 28. Bxf7+ {[%emt 0:00:30]} Ke7 {[%emt 0:00:30]} 29. Rg6 {[%emt 0:00:30]} Nd8 {[%emt 0:00:30]} 30. Bd5 {[%emt 0:00:30]} Ra7 {[%emt 0:00:30]} 31. Rd3 {[%emt 0:00:30]} Bf8 {[%emt 0:00:30]} 32. Rg5 {[%emt 0:00:30]} c6 {[%emt 0:00:30]} 33. Rxe5+ {[%emt 0:00:30]} Kd6 {[%emt 0:00:30]} 34. Re8 {[%emt 0:00:30]} Kc7 {[%emt 0:00:30]} 35. Bb3 {[%emt 0:00:30]} Bg7 {[%emt 0:00:30]} 36. Re7+ {[%emt 0:00:30]} 1-0

[Event "12th Chennai Open 2020"]
[Site "Chennai"]
[Date "2020.01.20"]
[Round "4.7"]
[White "Vishnu Prasanna. V"]
[Black "Lakshmi Narayanan M V"]
[Result "*"]
[ECO "E07"]
[WhiteElo "2474"]
[BlackElo "2162"]
[Annotator "ChessBase"]
[PlyCount "51"]
[EventDate "2020.01.19"]
[EventType "swiss"]
[EventCountry "IND"]
[SourceTitle "playchess.com"]
[Source "ChessBase"]
[SourceQuality "1"]
[TimeControl "5400+30"]

1. d4 {[%emt 0:00:00]} d5 {[%emt 0:00:00]} 2. Nf3 {[%emt 0:00:04]} Nf6 {[%emt 0:00:14]} 3. c4 {[%emt 0:00:30]} e6 {[%emt 0:00:30]} 4. g3 {[%emt 0:00:34]} c6 {[%emt 0:03:26]} 5. Bg2 {[%emt 0:00:23]} Nbd7 {[%emt 0:00:19]} 6. O-O {[%emt 0:02:30]} Be7 {[%emt 0:01:09]} 7. b3 {[%emt 0:00:30]} O-O {[%emt 0:00:30]} 8. Bb2 {[%emt 0:00:59]} b6 {[%emt 0:02:30]} 9. Nc3 {[%emt 0:00:30]} Ba6 {[%emt 0:00:30]} 10. Nd2 {[%emt 0:00:30]} b5 {[%emt 0:00:30]} 11. cxb5 {[%emt 0:00:30]} cxb5 {[%emt 0:00:30]} 12. a3 {[%emt 0:00:00]} Qb6 {[%emt 0:19:58]} 13. b4 {[%emt 0:00:22]} Bb7 {[%emt 0:00:30]} 14. Nb3 {[%emt 0:00:30]} Rfc8 {[%emt 0:00:30]} 15. Qd3 {[%emt 0:00:30]} a6 {[%emt 0:00:30]} 16. Rac1 {[%emt 0:00:30]} Qa7 {[%emt 0:00:30]} 17. Rc2 {[%emt 0:00:30]} Nb6 {[%emt 0:00:30]} 18. Rb1 {[%emt 0:00:30]} Nc4 {[%emt 0:00:30]} 19. Bc1 {[%emt 0:00:30]} Bc6 {[%emt 0:00:30]} 20. e3 {[%emt 0:00:30]} Rc7 {[%emt 0:00:30]} 21. Qd1 {[%emt 0:00:30]} Rac8 {[%emt 0:00:30]} 22. Nc5 {[%emt 0:00:30]} Nd7 {[%emt 0:00:30]} 23. Rb3 {[%emt 0:00:30]} Rd8 {[%emt 0:00:30]} 24. Qh5 {[%emt 0:00:30]} Nf6 {[%emt 0:00:30]} 25. Qe2 {[%emt 0:00:30]} Qa8 {[%emt 0:00:30]} 26. Qd1 {[%emt 0:30:21]} *

[Event "12th Chennai Open 2020"]
[Site "Chennai"]
[Date "2020.01.20"]
[Round "4.10"]
[White "Deshmukh, Anup"]
[Black "Das, Sayantan"]
[Result "0-1"]
[ECO "E91"]
[WhiteElo "2163"]
[BlackElo "2424"]
[Annotator "ChessBase"]
[PlyCount "52"]
[EventDate "2020.01.19"]
[EventType "swiss"]
[EventCountry "IND"]
[SourceTitle "playchess.com"]
[Source "ChessBase"]
[SourceQuality "1"]
[TimeControl "5400+30"]

1. c4 {[%emt 0:04:27]} Nf6 {[%emt 0:00:00]} 2. Nc3 {[%emt 0:00:13]} g6 {[%emt 0:00:29]} 3. d4 {[%emt 0:02:18]} Bg7 {[%emt 0:00:14]} 4. Nf3 {[%emt 0:00:09]} O-O {[%emt 0:00:16]} 5. e4 {[%emt 0:00:27]} d6 {[%emt 0:00:05]} 6. Be2 {[%emt 0:01:03]} Bg4 {[%emt 0:05:33]} 7. Be3 {[%emt 0:00:34]} Nfd7 {[%emt 0:02:50]} 8. O-O {[%emt 0:02:11]} c5 {[%emt 0:01:12]} 9. d5 {[%emt 0:04:59]} Na6 {[%emt 0:01:42]} 10. Qd2 {[%emt 0:01:47]} Nc7 {[%emt 0:05:15]} 11. Bg5 {[%emt 0:14:52]} a6 {[%emt 0:06:17]} 12. a4 {[%emt 0:09:47]} Rb8 {[%emt 0:02:57]} 13. Rfe1 {[%emt 0:01:52]} Bxf3 {[%emt 0:02:32]} 14. Bxf3 {[%emt 0:00:23]} b5 {[%emt 0:01:53]} 15. axb5 {[%emt 0:01:14]} axb5 {[%emt 0:00:06]} 16. Ra7 {[%emt 0:04:30]} bxc4 {[%emt 0:07:01]} 17. Bxe7 {[%emt 0:12:41]} Qxe7 {[%emt 0:00:26]} 18. Rxc7 {[%emt 0:00:07]} Qd8 {[%emt 0:02:40]} 19. Ra7 {[%emt 0:00:31]} Bd4 {[%emt 0:05:10]} 20. Nd1 {[%emt 0:05:18]} Ne5 {[%emt 0:03:07]} 21. Be2 {[%emt 0:00:13]} Qh4 {[%emt 0:02:29]} 22. Ra3 {[%emt 0:07:55]} Rxb2 {[%emt 0:10:58]} 23. Nxb2 {[%emt 0:05:39]} Qxf2+ {[%emt 0:00:50]} 24. Kh1 {[%emt 0:00:07]} Bxb2 {[%emt 0:00:24]} 25. Rf1 {[%emt 0:03:55]} Qd4 {[%emt 0:01:50]} 26. Qxd4 {[%emt 0:00:57]} cxd4 {[%emt 0:00:12]} 0-1

[Event "12th Chennai Open 2020"]
[Site "Chennai"]
[Date "2020.01.20"]
[Round "4.11"]
[White "Khusenkhojaev, Muhammad"]
[Black "Ramakrishna, J.."]
[Result "1-0"]
[ECO "D93"]
[WhiteElo "2420"]
[BlackElo "2068"]
[Annotator "ChessBase"]
[PlyCount "74"]
[EventDate "2020.01.19"]
[EventType "swiss"]
[EventCountry "IND"]
[SourceTitle "playchess.com"]
[Source "ChessBase"]
[SourceQuality "1"]
[TimeControl "5400+30"]

1. Nf3 {[%emt 0:02:03]} Nf6 {[%emt 0:01:00]} 2. c4 {[%emt 0:00:05]} c6 {[%emt 0:02:50]} 3. d4 {[%emt 0:00:09]} d5 {[%emt 0:00:10]} 4. Qc2 {[%emt 0:00:05]} g6 {[%emt 0:02:21]} 5. Bf4 {[%emt 0:00:06]} Bg7 {[%emt 0:02:12]} 6. e3 {[%emt 0:00:11]} O-O {[%emt 0:00:43]} 7. Nc3 {[%emt 0:00:39]} Na6 {[%emt 0:09:34]} 8. Be2 {[%emt 0:10:09]} Nb4 {[%emt 0:05:57]} 9. Qb3 {[%emt 0:01:37]} a5 {[%emt 0:00:08]} 10. O-O {[%emt 0:05:17]} dxc4 {[%emt 0:03:32]} 11. Bxc4 {[%emt 0:01:08]} b5 {[%emt 0:00:10]} 12. Be2 {[%emt 0:01:15]} Be6 {[%emt 0:00:08]} 13. Qd1 {[%emt 0:00:07]} Nbd5 {[%emt 0:12:24]} 14. Nxd5 {[%emt 0:01:56]} Bxd5 {[%emt 0:00:41]} 15. h3 {[%emt 0:11:47]} Qb6 {[%emt 0:02:10]} 16. Qc2 {[%emt 0:02:19]} Be4 {[%emt 0:03:36]} 17. Qc1 {[%emt 0:04:06]} Rac8 {[%emt 0:02:19]} 18. Nd2 {[%emt 0:00:39]} c5 {[%emt 0:11:07]} 19. Nxe4 {[%emt 0:00:16]} Nxe4 {[%emt 0:00:07]} 20. d5 {[%emt 0:02:46]} c4 {[%emt 0:00:51]} 21. Qc2 {[%emt 0:00:15]} Nd6 {[%emt 0:04:30]} 22. Rac1 {[%emt 0:03:32]} c3 {[%emt 0:06:33]} 23. bxc3 {[%emt 0:01:50]} Rxc3 {[%emt 0:00:16]} 24. Qb1 {[%emt 0:00:20]} b4 {[%emt 0:00:52]} 25. Rxc3 {[%emt 0:00:33]} Bxc3 {[%emt 0:00:09]} 26. Qd3 {[%emt 0:02:14]} Rc8 {[%emt 0:06:46]} 27. e4 {[%emt 0:04:52]} Bd4 {[%emt 0:04:12]} 28. e5 {[%emt 0:00:57]} Nf5 {[%emt 0:02:51]} 29. Bg4 {[%emt 0:04:17]} Rc3 {[%emt 0:02:11]} 30. Qe4 {[%emt 0:00:08]} Ng3 {[%emt 0:09:56]} 31. Bxg3 {[%emt 0:00:15]} Rxg3 {[%emt 0:00:04]} 32. d6 {[%emt 0:04:33]} exd6 {[%emt 0:00:30]} 33. e6 {[%emt 0:00:30]} fxe6 {[%emt 0:00:30]} 34. Qxe6+ {[%emt 0:00:30]} Kf8 {[%emt 0:00:30]} 35. Qc8+ {[%emt 0:00:30]} Kg7 {[%emt 0:00:30]} 36. Qd7+ {[%emt 0:00:30]} Kh6 {[%emt 0:00:30]} 37. Qe7 {[%emt 0:09:29]} Rc3 {[%emt 0:02:39]} 1-0

[Event "12th Chennai Open 2020"]
[Site "Chennai"]
[Date "2020.01.20"]
[Round "4.19"]
[White "Neelotpal, Das"]
[Black "Barath Kalyan M"]
[Result "1-0"]
[ECO "E50"]
[WhiteElo "2436"]
[BlackElo "2091"]
[Annotator "ChessBase"]
[PlyCount "107"]
[EventDate "2020.01.19"]
[EventType "swiss"]
[EventCountry "IND"]
[SourceTitle "playchess.com"]
[Source "ChessBase"]
[SourceQuality "1"]
[TimeControl "5400+30"]

1. d4 {[%emt 1:30:30]} Nf6 {[%emt 1:30:30]} 2. c4 {[%emt 0:00:30]} e6 {[%emt 0:00:30]} 3. Nc3 {[%emt 0:00:30]} Bb4 {[%emt 0:00:30]} 4. e3 {[%emt 0:00:30]} O-O {[%emt 0:00:30]} 5. Nf3 {[%emt 0:00:30]} Bxc3+ {[%emt 0:00:30]} 6. bxc3 {[%emt 0:00:30]} d6 {[%emt 0:00:30]} 7. Bd3 {[%emt 0:00:30]} Nc6 {[%emt 0:00:30]} 8. O-O {[%emt 0:00:30]} e5 {[%emt 0:00:30]} 9. Nd2 {[%emt 0:00:30]} Qe7 {[%emt 0:00:30]} 10. Bb2 {[%emt 0:00:30]} e4 {[%emt 0:00:30]} 11. Bc2 {[%emt 0:00:30]} Bg4 {[%emt 0:00:30]} 12. Qb1 {[%emt 0:00:30]} Rfe8 {[%emt 0:00:30]} 13. Ba3 {[%emt 0:00:30]} b6 {[%emt 0:00:30]} 14. Qb5 {[%emt 0:00:30]} Na5 {[%emt 0:00:30]} 15. Bb4 {[%emt 0:00:30]} Nb7 {[%emt 0:00:30]} 16. Qg5 {[%emt 0:00:30]} c5 {[%emt 0:00:30]} 17. Ba3 {[%emt 0:00:30]} Bd7 {[%emt 0:00:30]} 18. Rae1 {[%emt 0:00:30]} Bc6 {[%emt 0:00:30]} 19. Qg3 {[%emt 0:00:30]} Nh5 {[%emt 0:00:30]} 20. Qh3 {[%emt 0:00:30]} Nf6 {[%emt 0:00:30]} 21. f3 {[%emt 0:00:30]} d5 {[%emt 0:00:30]} 22. cxd5 {[%emt 0:00:30]} Bxd5 {[%emt 0:00:30]} 23. c4 {[%emt 0:00:30]} Be6 {[%emt 0:00:30]} 24. Qh4 {[%emt 0:00:30]} exf3 {[%emt 0:00:30]} 25. gxf3 {[%emt 0:00:30]} h6 {[%emt 0:00:30]} 26. Kh1 {[%emt 0:00:30]} Na5 {[%emt 0:00:30]} 27. Rg1 {[%emt 0:00:30]} Kh8 {[%emt 0:00:30]} 28. d5 {[%emt 0:00:30]} Nxc4 {[%emt 0:00:30]} 29. Qxc4 {[%emt 0:00:30]} Bxd5 {[%emt 0:00:30]} 30. Qf4 {[%emt 0:00:30]} Qe5 {[%emt 0:00:30]} 31. Qxe5 {[%emt 0:00:30]} Rxe5 {[%emt 0:00:30]} 32. Bb2 {[%emt 0:00:30]} Re6 {[%emt 0:00:30]} 33. e4 {[%emt 0:00:30]} Bxa2 {[%emt 0:00:30]} 34. Ra1 {[%emt 0:00:30]} Rd8 {[%emt 0:00:30]} 35. Rg2 {[%emt 0:00:30]} Red6 {[%emt 0:00:30]} 36. Nf1 {[%emt 0:00:30]} Bc4 {[%emt 0:00:30]} 37. e5 {[%emt 0:00:30]} Bxf1 {[%emt 0:00:30]} 38. Rxf1 {[%emt 0:00:30]} Rd2 {[%emt 0:00:30]} 39. exf6 {[%emt 0:00:30]} Rxg2 {[%emt 0:00:30]} 40. Kxg2 {[%emt 0:00:30]} Rd2+ {[%emt 0:00:30]} 41. Rf2 {[%emt 0:00:30]} Rxf2+ {[%emt 0:00:30]} 42. Kxf2 {[%emt 0:00:30]} g5 {[%emt 0:00:30]} 43. Bd3 {[%emt 0:00:30]} a5 {[%emt 0:00:30]} 44. Bb5 {[%emt 0:00:30]} Kh7 {[%emt 0:00:30]} 45. Ke3 {[%emt 0:00:30]} Kg6 {[%emt 0:00:30]} 46. Ke4 {[%emt 0:00:30]} h5 {[%emt 0:00:30]} 47. Ke5 {[%emt 0:00:30]} h4 {[%emt 0:00:30]} 48. h3 {[%emt 0:00:30]} Kh6 {[%emt 0:00:30]} 49. Kf5 {[%emt 0:00:30]} a4 {[%emt 0:00:30]} 50. Bc1 {[%emt 0:00:30]} a3 {[%emt 0:00:30]} 51. Bxa3 {[%emt 0:00:30]} c4 {[%emt 0:00:30]} 52. Bxc4 {[%emt 0:00:30]} b5 {[%emt 0:00:30]} 53. Bf8+ {[%emt 0:00:30]} Kh5 {[%emt 0:00:30]} 54. Bxf7# {[%emt 0:00:30]} 1-0

[Event "12th Chennai Open 2020"]
[Site "Chennai"]
[Date "2020.01.22"]
[Round "7.4"]
[White "Goganov, Aleksey"]
[Black "Deshmukh, Anup"]
[Result "1-0"]
[ECO "D43"]
[WhiteElo "2583"]
[BlackElo "2163"]
[Annotator "RC"]
[PlyCount "72"]
[EventDate "2020.01.19"]
[EventType "swiss"]
[EventCountry "IND"]
[SourceTitle "playchess.com"]
[Source "ChessBase"]
[SourceQuality "1"]
[TimeControl "5400+30"]

1. d4 {[%emt 0:00:00]} d5 {[%emt 0:01:02]} 2. c4 {[%emt 0:00:00]} c6 {[%emt 0:00:05]} 3. Nf3 {[%emt 0:00:00]} Nf6 {[%emt 1:30:23]} 4. Nc3 {[%emt 0:01:34]} e6 {[%emt 0:00:00]} 5. Bg5 {[%emt 0:00:21]} h6 {[%emt 0:00:00]} 6. Bxf6 {[%emt 0:01:56]} Qxf6 {[%emt 0:00:00]} 7. e3 {[%emt 0:01:56]} Nd7 {[%emt 0:00:00]} 8. Be2 {[%emt 0:00:33]} Bb4 {[%emt 0:00:00]} 9. Qb3 {[%emt 0:15:01]} Bxc3+ {[%emt 0:00:00]} 10. Qxc3 {[%emt 0:00:03]} O-O {[%emt 0:00:00]} 11. O-O {[%emt 0:01:01]} dxc4 {[%emt 0:00:00]} 12. Bxc4 {[%emt 0:00:09]} b6 {[%emt 0:00:00]} 13. Bd3 {[%emt 0:12:28]} Bb7 {[%emt 0:00:00]} 14. Be4 {[%emt 0:03:24]} Qe7 {[%emt 0:00:00]} 15. Nd2 {[%emt 0:03:58]} Rac8 {[%emt 0:00:00]} 16. Rac1 {[%emt 0:01:13]} Rfd8 {[%emt 0:00:00]} 17. Bf3 {[%emt 0:01:51]} Nf6 {[%emt 0:00:00]} 18. Rfd1 {[%emt 0:04:21]} c5 {[%emt 0:00:00]} 19. Qa3 {[%emt 0:00:04]} Bxf3 {[%emt 0:00:00]} 20. Nxf3 {[%emt 0:00:04]} Ne4 {[%emt 0:00:00]} 21. Qa6 {[%emt 0:03:30]} Rc7 {[%emt 0:00:00]} 22. Qd3 {[%emt 0:03:43]} f5 {[%emt 0:00:00]} 23. Qe2 {[%emt 0:00:09]} cxd4 {[%emt 0:00:00]} 24. Nxd4 {[%emt 0:00:45]} Rdc8 {[%emt 0:00:00]} 25. Rxc7 {[%emt 0:00:58]} Rxc7 {[%emt 0:00:00]} 26. Qb5 {[%emt 0:04:26]} Rc5 {[%emt 0:00:00]} 27. Qb3 {[%emt 0:01:07]} Kf7 {[%emt 0:00:00]} 28. a3 {[%emt 0:08:58]} Qe8 {[%emt 0:00:00]} 29. h3 Qf8 {[%emt 0:00:00]} 30. f3 Ng5 {[%emt 0:00:00]} 31. Nb5 {[%emt 0:01:30]} Kg8 {[%emt 0:00:00]} 32. Nd6 {[%emt 0:00:30]} Qb8 {[%emt 0:00:00]} 33. e4 {[%emt 0:00:30]} Kh7 {[%emt 0:00:06]} 34. Qd3 {[%emt 0:00:30]} fxe4 {[%emt 0:00:30]} 35. Nxe4 {[%emt 0:00:30]} Nxe4 {[%emt 0:00:30]} 36. Qxe4+ {[%emt 0:00:30]} Kh8 {[%emt 0:00:30]} 1-0

[Event "12th Chennai Open 2020"]
[Site "Chennai"]
[Date "2020.01.23"]
[Round "8.7"]
[White "Girinath, P.D.S."]
[Black "Stupak, Kirill"]
[Result "0-1"]
[ECO "C10"]
[WhiteElo "2340"]
[BlackElo "2506"]
[Annotator "ChessBase"]
[PlyCount "107"]
[EventDate "2020.01.19"]
[EventType "swiss"]
[EventCountry "IND"]
[SourceTitle "playchess.com"]
[Source "ChessBase"]
[SourceQuality "1"]
[TimeControl "5400+30"]

1. e4 {[%emt 0:00:00]} e6 {[%emt 0:00:00]} 2. d4 {[%emt 0:03:52]} d5 {[%emt 0:00:00]} 3. Nc3 {[%emt 0:00:34]} Nc6 {[%emt 0:00:22]} 4. Nf3 {[%emt 0:01:38]} Nf6 {[%emt 0:00:01]} 5. e5 {[%emt 0:18:01]} Ne4 {[%emt 0:00:06]} 6. Bd3 {[%emt 0:04:23]} Bb4 {[%emt 0:00:19]} 7. O-O {[%emt 0:02:24]} Nxc3 {[%emt 0:00:03]} 8. bxc3 {[%emt 0:00:08]} Bxc3 {[%emt 0:00:03]} 9. Rb1 {[%emt 0:00:26]} h6 {[%emt 0:10:26]} 10. Rb3 {[%emt 0:21:18]} Bxd4 {[%emt 0:10:12]} 11. Nxd4 {[%emt 0:02:14]} Nxd4 {[%emt 0:00:01]} 12. Rb2 {[%emt 0:10:58]} Nf5 {[%emt 0:08:24]} 13. Bxf5 {[%emt 0:03:26]} exf5 {[%emt 0:00:04]} 14. c4 {[%emt 0:00:39]} d4 {[%emt 0:12:13]} 15. c5 {[%emt 0:00:59]} Qd5 {[%emt 0:08:54]} 16. Be3 {[%emt 0:13:47]} Be6 {[%emt 0:03:03]} 17. Qa4+ {[%emt 0:01:50]} Bd7 {[%emt 0:04:28]} 18. Qxd4 {[%emt 0:00:11]} Qxd4 {[%emt 0:00:10]} 19. Bxd4 {[%emt 0:00:07]} Bc6 {[%emt 0:00:01]} 20. f4 {[%emt 0:13:05]} O-O-O {[%emt 0:02:03]} 21. Rd1 {[%emt 0:00:00]} Rd7 {[%emt 0:02:18]} 22. Kf2 {[%emt 0:00:00]} Rhd8 {[%emt 0:02:35]} 23. Ke3 {[%emt 0:00:00]} b6 {[%emt 0:00:54]} 24. Rbd2 {[%emt 0:00:00]} Ba4 {[%emt 0:01:37]} 25. Rc1 {[%emt 0:00:00]} Kb7 {[%emt 0:00:05]} 26. Bc3 {[%emt 0:01:30]} Rxd2 {[%emt 0:01:38]} 27. Bxd2 {[%emt 0:00:01]} Bb5 {[%emt 0:00:00]} 28. Rc3 {[%emt 0:00:14]} bxc5 {[%emt 0:01:11]} 29. Bc1 {[%emt 0:00:58]} Rd1 {[%emt 0:02:38]} 30. Rxc5 {[%emt 0:00:44]} Bc6 {[%emt 0:00:01]} 31. g4 {[%emt 0:00:52]} fxg4 {[%emt 0:00:34]} 32. f5 {[%emt 0:00:24]} Rf1 {[%emt 0:02:09]} 33. e6 {[%emt 0:00:16]} fxe6 {[%emt 0:00:30]} 34. fxe6 {[%emt 0:00:04]} Re1+ {[%emt 0:00:00]} 35. Kf4 {[%emt 0:00:09]} Rxe6 {[%emt 0:00:00]} 36. Kxg4 {[%emt 0:00:56]} Re2 {[%emt 0:00:00]} 37. Bf4 {[%emt 0:00:18]} Rxa2 {[%emt 0:00:27]} 38. Re5 {[%emt 0:00:14]} Ra4 {[%emt 0:03:58]} 39. h4 {[%emt 0:00:43]} Bd7+ {[%emt 0:00:07]} 40. Kf3 {[%emt 0:00:20]} Ra1 {[%emt 0:07:40]} 41. Re7 {[%emt 0:01:07]} Rf1+ {[%emt 0:00:11]} 42. Kg3 {[%emt 0:00:12]} Kc8 {[%emt 0:00:17]} 43. Be3 {[%emt 0:00:35]} a5 {[%emt 0:03:20]} 44. Rxg7 {[%emt 0:01:10]} a4 {[%emt 0:00:01]} 45. Kg2 {[%emt 0:00:36]} Rd1 {[%emt 0:01:55]} 46. Rg8+ {[%emt 0:00:50]} Kb7 {[%emt 0:00:01]} 47. Bxh6 {[%emt 0:00:09]} a3 {[%emt 0:00:36]} 48. Bg7 {[%emt 0:00:37]} a2 {[%emt 0:00:23]} 49. h5 {[%emt 0:00:24]} Bc6+ {[%emt 0:00:40]} 50. Kf2 {[%emt 0:00:25]} Rd2+ {[%emt 0:03:47]} 51. Ke3 {[%emt 0:00:13]} Rg2 {[%emt 0:00:08]} 52. h6 {[%emt 0:00:13]} Rxg7 {[%emt 0:00:04]} 53. hxg7 {[%emt 0:00:36]} Bd5 {[%emt 0:00:01]} 54. Kd4 {[%emt 0:02:10]} 0-1

[Event "12th Chennai Open 2020"]
[Site "Chennai"]
[Date "2020.01.23"]
[Round "8.8"]
[White "Venkatesh, M.R."]
[Black "Eraschenkov, Denis"]
[Result "1-0"]
[ECO "C07"]
[WhiteElo "2501"]
[BlackElo "2370"]
[Annotator "ChessBase"]
[PlyCount "79"]
[EventDate "2020.01.19"]
[EventType "swiss"]
[EventCountry "IND"]
[SourceTitle "playchess.com"]
[Source "ChessBase"]
[SourceQuality "1"]
[TimeControl "5400+30"]

1. e4 {[%emt 0:01:32]} e6 {[%emt 0:00:00]} 2. d4 {[%emt 0:00:11]} d5 {[%emt 0:00:04]} 3. Nd2 {[%emt 0:00:06]} a6 {[%emt 0:00:20]} 4. Ngf3 {[%emt 0:05:52]} c5 {[%emt 0:00:33]} 5. dxc5 {[%emt 0:01:23]} Bxc5 {[%emt 0:00:22]} 6. Bd3 {[%emt 0:00:10]} Nf6 {[%emt 0:01:54]} 7. e5 {[%emt 0:02:37]} Nfd7 {[%emt 0:00:57]} 8. Nb3 {[%emt 0:00:46]} Ba7 {[%emt 0:07:40]} 9. Bf4 {[%emt 0:25:45]} Nc6 {[%emt 0:02:32]} 10. O-O {[%emt 0:00:30]} f6 {[%emt 0:16:45]} 11. exf6 {[%emt 0:08:58]} Qxf6 {[%emt 0:02:08]} 12. Bg5 {[%emt 0:01:21]} Qf7 {[%emt 0:11:09]} 13. Be3 {[%emt 0:04:24]} h6 {[%emt 0:13:02]} 14. Bxa7 {[%emt 0:05:54]} Rxa7 {[%emt 0:00:49]} 15. Nh4 {[%emt 0:00:07]} Nde5 {[%emt 0:06:55]} 16. f4 {[%emt 0:00:47]} Nxd3 {[%emt 0:00:34]} 17. Qxd3 {[%emt 0:00:48]} O-O {[%emt 0:02:47]} 18. Ng6 {[%emt 0:13:54]} Re8 {[%emt 0:06:56]} 19. Rae1 {[%emt 0:02:49]} b6 {[%emt 0:02:49]} 20. Ne5 {[%emt 0:02:33]} Nxe5 {[%emt 0:01:12]} 21. Rxe5 {[%emt 0:00:07]} a5 {[%emt 0:13:22]} 22. Qe3 {[%emt 0:00:22]} Rc7 {[%emt 0:02:10]} 23. Nd4 {[%emt 0:00:25]} Rf8 {[%emt 0:00:46]} 24. c3 {[%emt 0:02:24]} Rc4 {[%emt 0:01:07]} 25. g3 {[%emt 0:02:32]} Rc5 {[%emt 0:03:31]} 26. Re1 {[%emt 0:01:06]} Rd8 {[%emt 0:01:10]} 27. Nxe6 {[%emt 0:11:12]} Bxe6 {[%emt 0:00:10]} 28. Rxe6 {[%emt 0:00:02]} d4 {[%emt 0:00:33]} 29. cxd4 {[%emt 0:00:13]} Rc4 {[%emt 0:01:01]} 30. Rxb6 {[%emt 0:04:54]} Rc2 {[%emt 0:01:00]} 31. a3 {[%emt 0:01:08]} Kh8 {[%emt 0:00:32]} 32. Re6 {[%emt 0:00:32]} Rcc8 {[%emt 0:00:34]} 33. Qe5 {[%emt 0:00:25]} Kh7 {[%emt 0:00:27]} 34. Re7 {[%emt 0:00:08]} Qf8 {[%emt 0:00:28]} 35. f5 {[%emt 0:00:31]} Rc6 {[%emt 0:00:05]} 36. Re6 {[%emt 0:00:40]} Rc4 {[%emt 0:00:57]} 37. f6 {[%emt 0:00:29]} Rcxd4 {[%emt 0:00:18]} 38. fxg7 {[%emt 0:00:40]} Qf7 {[%emt 0:00:02]} 39. g8=Q+ {[%emt 0:00:36]} Qxg8 {[%emt 0:00:29]} 40. Qf5+ {[%emt 0:00:23]} 1-0